[Event "IND-ch Senior Open 2019"]
[Site "Mazitar"]
[Date "2019.12.10"]
[Round "1.6"]
[White "Singh, Pritam"]
[Black "Ghosh, Diptayan"]
[Result "0-1"]
[ECO "A45"]
[WhiteElo "1953"]
[BlackElo "2555"]
[Annotator "ChessBase"]
[PlyCount "72"]
[EventDate "2018.12.08"]
[EventType "swiss"]
[EventRounds "11"]
[EventCountry "IND"]
[SourceTitle "playchess.com"]
[Source "ChessBase"]
[SourceQuality "1"]
[TimeControl "40/5400+30:1800+30"]

1. d4 {[%emt 0:00:00]} Nf6 {[%emt 0:00:02]} 2. Bf4 {[%emt 0:00:01]} d5 {[%emt 0:00:02]} 3. e3 {[%emt 0:00:02]} c5 {[%emt 0:00:00]} 4. c3 {[%emt 0:00:01]} Nc6 {[%emt 0:00:00]} 5. Nd2 {[%emt 0:00:01]} Bf5 {[%emt 0:00:01]} 6. Ngf3 {[%emt 0:00:02]} e6 {[%emt 0:00:00]} 7. Ne5 {[%emt 0:00:02]} Nxe5 {[%emt 0:00:01]} 8. dxe5 {[%emt 0:00:00]} Nd7 {[%emt 0:00:01]} 9. e4 {[%emt 0:00:23]} dxe4 {[%emt 0:00:01]} 10. h4 {[%emt 0:00:02]} h5 {[%emt 0:00:00]} 11. Be2 {[%emt 0:00:02]} Be7 {[%emt 0:00:00]} 12. Nc4 {[%emt 0:00:01]} Qc7 {[%emt 0:00:02]} 13. Qa4 {[%emt 0:00:02]} O-O {[%emt 0:00:01]} 14. Rd1 {[%emt 0:00:02]} Rfd8 {[%emt 0:00:02]} 15. Bxh5 {[%emt 0:00:02]} a6 {[%emt 0:00:02]} 16. Bg3 {[%emt 0:00:02]} b5 {[%emt 0:00:02]} 17. Qa5 {[%emt 0:00:15]} Qc6 {[%emt 0:00:12]} 18. Ne3 {[%emt 0:00:02]} c4 {[%emt 0:00:01]} 19. O-O {[%emt 0:00:01]} Nc5 {[%emt 0:00:02]} 20. Rd6 {[%emt 0:00:52]} Bxd6 {[%emt 0:00:05]} 21. exd6 {[%emt 0:00:00]} Rd7 {[%emt 0:00:03]} 22. Rd1 {[%emt 0:00:02]} Rad8 {[%emt 0:00:56]} 23. Qa3 {[%emt 0:00:02]} Nb7 {[%emt 0:00:02]} 24. Nc2 {[%emt 0:00:02]} Nxd6 {[%emt 0:00:02]} 25. Nb4 {[%emt 0:00:01]} Qb6 {[%emt 0:00:02]} 26. Qxa6 {[%emt 0:00:01]} Qxa6 {[%emt 0:00:01]} 27. Nxa6 Ne8 28. Re1 {[%emt 0:00:32]} Nf6 {[%emt 0:00:44]} 29. Be2 {[%emt 0:00:03]} Rd2 {[%emt 0:00:03]} 30. Bc7 {[%emt 0:00:03]} Ra8 {[%emt 0:00:03]} 31. Nb4 {[%emt 0:00:02]} Rxb2 {[%emt 0:00:02]} 32. Bf4 {[%emt 0:00:06]} Nd5 {[%emt 0:00:02]} 33. Bc1 {[%emt 0:00:03]} Rb1 {[%emt 0:00:01]} 34. Nxd5 {[%emt 0:00:01]} exd5 {[%emt 0:00:02]} 35. g4 {[%emt 0:00:01]} Rxa2 {[%emt 0:00:02]} 36. gxf5 {[%emt 0:00:02]} Raa1 {[%emt 0:00:01]} 0-1

[Event "IND-ch Senior Open 2019"]
[Site "Mazitar"]
[Date "2019.12.10"]
[Round "1.7"]
[White "Chanda, Sandipan"]
[Black "Nandhini, Saripalli"]
[Result "1-0"]
[ECO "D02"]
[WhiteElo "2545"]
[BlackElo "1949"]
[Annotator "ChessBase"]
[PlyCount "51"]
[EventDate "2018.12.08"]
[EventType "swiss"]
[EventRounds "11"]
[EventCountry "IND"]
[SourceTitle "playchess.com"]
[Source "ChessBase"]
[SourceQuality "1"]
[TimeControl "40/5400+30:1800+30"]

1. d4 {[%emt 0:00:00]} d5 {[%emt 0:00:03]} 2. Nf3 {[%emt 0:00:04]} e6 {[%emt 0:00:03]} 3. Bf4 {[%emt 0:00:20]} Nf6 {[%emt 0:00:03]} 4. e3 {[%emt 0:00:05]} Nh5 {[%emt 0:00:01]} 5. Be5 {[%emt 0:00:03]} f6 {[%emt 0:00:01]} 6. Bg3 {[%emt 0:00:04]} g6 {[%emt 0:00:01]} 7. c4 {[%emt 0:00:04]} Nxg3 {[%emt 0:00:04]} 8. hxg3 {[%emt 0:00:01]} c6 {[%emt 0:00:05]} 9. Bd3 {[%emt 0:00:01]} Bg7 {[%emt 0:00:05]} 10. cxd5 {[%emt 0:00:03]} cxd5 {[%emt 0:00:03]} 11. Rxh7 {[%emt 1:11:32]} Rxh7 {[%emt 0:00:15]} 12. Bxg6+ {[%emt 0:00:01]} Kf8 {[%emt 0:00:03]} 13. Bxh7 {[%emt 0:00:00]} f5 {[%emt 0:00:02]} 14. Bg6 {[%emt 0:00:04]} Nc6 {[%emt 0:00:01]} 15. Nc3 {[%emt 0:00:03]} Qf6 {[%emt 0:00:03]} 16. Bh5 {[%emt 0:00:02]} Qh6 {[%emt 0:00:00]} 17. Nh4 {[%emt 0:00:07]} Bf6 {[%emt 0:00:03]} 18. Ng6+ {[%emt 0:00:03]} Kg7 {[%emt 0:00:00]} 19. Nf4 {[%emt 0:00:04]} Bd7 {[%emt 0:00:04]} 20. Qb3 {[%emt 0:00:01]} b6 {[%emt 0:00:01]} 21. Ncxd5 {[%emt 0:00:04]} exd5 {[%emt 0:00:00]} 22. Qxd5 {[%emt 0:00:02]} Be8 {[%emt 0:00:00]} 23. Bxe8 {[%emt 0:00:03]} Rxe8 {[%emt 0:00:01]} 24. Qxc6 {[%emt 0:00:02]} Re7 {[%emt 0:00:00]} 25. O-O-O {[%emt 0:00:02]} Qh8 {[%emt 0:00:01]} 26. Kb1 {[%emt 0:00:03]} 1-0

[Event "IND-ch Senior Open 2019"]
[Site "Mazitar"]
[Date "2019.12.10"]
[Round "1.8"]
[White "Trailokya, Nanda"]
[Black "Deepan Chakkravarthy J."]
[Result "0-1"]
[ECO "B04"]
[WhiteElo "1948"]
[BlackElo "2535"]
[Annotator "ChessBase"]
[PlyCount "116"]
[EventDate "2018.12.08"]
[EventType "swiss"]
[EventRounds "11"]
[EventCountry "IND"]
[SourceTitle "playchess.com"]
[Source "ChessBase"]
[SourceQuality "1"]
[TimeControl "40/5400+30:1800+30"]

1. e4 {[%emt 0:00:00]} Nf6 {[%emt 0:00:01]} 2. e5 {[%emt 0:00:18]} Nd5 {[%emt 0:00:00]} 3. d4 {[%emt 0:00:03]} d6 {[%emt 0:00:00]} 4. Nf3 {[%emt 0:00:02]} dxe5 {[%emt 0:00:00]} 5. Nxe5 {[%emt 0:00:02]} c6 {[%emt 0:00:01]} 6. Nd2 {[%emt 0:00:01]} g6 {[%emt 0:00:00]} 7. Ndf3 {[%emt 0:00:05]} Bg7 {[%emt 0:00:01]} 8. Bc4 {[%emt 0:00:02]} O-O {[%emt 0:00:01]} 9. O-O {[%emt 0:00:02]} b5 {[%emt 0:00:00]} 10. Bb3 {[%emt 0:00:02]} a5 {[%emt 0:00:00]} 11. a4 {[%emt 0:00:02]} b4 {[%emt 0:00:01]} 12. Re1 {[%emt 0:00:00]} Qc7 {[%emt 0:00:03]} 13. c4 {[%emt 0:00:03]} bxc3 {[%emt 0:00:00]} 14. bxc3 {[%emt 0:00:03]} Nd7 {[%emt 0:00:00]} 15. Ba3 {[%emt 0:00:04]} Nxe5 {[%emt 0:00:04]} 16. Nxe5 {[%emt 0:00:02]} Rb8 {[%emt 0:00:00]} 17. Bxd5 {[%emt 0:00:18]} cxd5 {[%emt 0:00:02]} 18. Qf3 {[%emt 0:00:02]} Be6 {[%emt 0:00:02]} 19. Rac1 {[%emt 0:00:05]} Rfe8 {[%emt 0:01:11]} 20. Bc5 {[%emt 0:00:21]} Rb3 {[%emt 0:00:01]} 21. h4 {[%emt 0:00:05]} Qc8 {[%emt 0:00:01]} 22. Nd3 {[%emt 0:00:05]} Bh6 {[%emt 0:00:04]} 23. Rc2 {[%emt 0:00:03]} Qb8 {[%emt 0:00:02]} 24. Ne5 {[%emt 0:00:03]} Rb1 {[%emt 0:00:02]} 25. Rce2 {[%emt 0:00:08]} Rxe1+ {[%emt 0:00:06]} 26. Rxe1 {[%emt 0:00:00]} Qc8 {[%emt 0:00:01]} 27. Rb1 {[%emt 0:00:13]} f6 {[%emt 0:00:01]} 28. Nd3 {[%emt 0:00:03]} Bf7 {[%emt 0:00:01]} 29. Rb5 {[%emt 0:00:10]} Qc7 {[%emt 0:00:05]} 30. g3 {[%emt 0:00:03]} Bg7 {[%emt 0:00:02]} 31. Nf4 {[%emt 0:00:03]} e6 {[%emt 0:00:01]} 32. Bb6 {[%emt 0:00:05]} Qc4 {[%emt 0:00:01]} 33. Rxa5 {[%emt 0:00:05]} Rb8 {[%emt 0:00:01]} 34. Rb5 {[%emt 0:00:03]} Qxa4 {[%emt 0:00:01]} 35. Rb4 {[%emt 0:00:03]} Qa2 {[%emt 0:00:13]} 36. Bc5 {[%emt 0:00:08]} Rxb4 {[%emt 0:00:18]} 37. Bxb4 {[%emt 0:00:01]} e5 {[%emt 0:00:01]} 38. Ne2 {[%emt 0:00:03]} h5 {[%emt 0:00:01]} 39. Qd3 {[%emt 0:00:08]} Kh7 {[%emt 0:00:08]} 40. Qb5 {[%emt 0:00:03]} Qb1+ {[%emt 0:00:28]} 41. Kg2 {[%emt 0:30:03]} Be6 {[%emt 0:30:01]} 42. Ng1 {[%emt 0:00:02]} exd4 {[%emt 0:00:03]} 43. cxd4 {[%emt 0:00:03]} Qe4+ {[%emt 0:00:01]} 44. Kh2 {[%emt 0:00:03]} Qxd4 {[%emt 0:00:01]} 45. Bc5 {[%emt 0:00:03]} Qc4 {[%emt 0:00:02]} 46. Qb6 {[%emt 0:00:01]} Bd7 {[%emt 0:00:04]} 47. Qa7 {[%emt 0:00:03]} Qg4 {[%emt 0:00:04]} 48. Bd4 {[%emt 0:00:04]} Qf5 {[%emt 0:00:02]} 49. Bc5 {[%emt 0:00:04]} Bb5 {[%emt 0:00:01]} 50. Qb7 {[%emt 0:00:04]} Qd7 {[%emt 0:00:01]} 51. Qb6 {[%emt 0:00:08]} Bd3 {[%emt 0:00:01]} 52. Nh3 {[%emt 0:00:04]} Be4 {[%emt 0:00:01]} 53. Nf4 {[%emt 0:00:03]} Qa4 {[%emt 0:00:01]} 54. Qc7 {[%emt 0:00:03]} Qd1 {[%emt 0:00:03]} 55. f3 {[%emt 0:00:03]} Qxf3 {[%emt 0:00:28]} 56. Kg1 {[%emt 0:00:01]} Qxg3+ {[%emt 0:00:04]} 57. Kf1 {[%emt 0:00:00]} Bd3+ {[%emt 0:00:02]} 58. Nxd3 {[%emt 0:00:10]} Qxc7 {[%emt 0:00:01]} 0-1

[Event "IND-ch Senior Open 2019"]
[Site "Mazitar"]
[Date "2019.12.10"]
[Round "1.9"]
[White "Visakh N R"]
[Black "Aishwin Daniel"]
[Result "1-0"]
[ECO "A12"]
[WhiteElo "2516"]
[BlackElo "1941"]
[Annotator "ChessBase"]
[PlyCount "58"]
[EventDate "2018.12.08"]
[EventType "swiss"]
[EventRounds "11"]
[EventCountry "IND"]
[SourceTitle "playchess.com"]
[Source "ChessBase"]
[SourceQuality "1"]
[TimeControl "40/5400+30:1800+30"]

1. c4 {[%emt 0:00:00]} c6 {[%emt 0:00:01]} 2. Nf3 {[%emt 0:00:01]} d5 {[%emt 0:00:00]} 3. b3 {[%emt 0:00:03]} Nf6 {[%emt 0:00:00]} 4. Bb2 {[%emt 0:00:01]} Bf5 {[%emt 0:00:00]} 5. g3 {[%emt 0:00:01]} Nbd7 {[%emt 0:00:01]} 6. Bg2 {[%emt 0:00:02]} e6 {[%emt 0:00:01]} 7. O-O {[%emt 0:00:01]} Bd6 {[%emt 0:00:01]} 8. d3 {[%emt 0:00:02]} O-O {[%emt 0:00:00]} 9. Nc3 {[%emt 0:00:02]} Qe7 {[%emt 0:00:01]} 10. Re1 {[%emt 0:00:01]} Rfd8 {[%emt 0:00:03]} 11. a3 {[%emt 0:00:01]} a6 {[%emt 0:00:00]} 12. Qc2 {[%emt 0:00:01]} Bg6 {[%emt 0:00:00]} 13. Nh4 {[%emt 0:00:02]} Nf8 {[%emt 0:00:02]} 14. e4 {[%emt 0:00:02]} dxe4 {[%emt 0:00:02]} 15. dxe4 {[%emt 0:00:00]} e5 {[%emt 0:00:00]} 16. Nf5 {[%emt 0:00:01]} Qc7 {[%emt 0:00:02]} 17. Na4 {[%emt 0:00:02]} b5 {[%emt 0:00:01]} 18. c5 {[%emt 0:00:02]} Be7 {[%emt 0:00:00]} 19. Nb6 {[%emt 0:00:02]} Rab8 {[%emt 0:00:01]} 20. b4 {[%emt 0:00:02]} Re8 {[%emt 0:00:01]} 21. a4 {[%emt 0:00:01]} N8d7 {[%emt 0:00:03]} 22. axb5 {[%emt 0:00:07]} axb5 {[%emt 0:00:06]} 23. Nxd7 {[%emt 0:00:06]} Nxd7 {[%emt 0:00:02]} 24. Red1 {[%emt 0:00:06]} Bf8 {[%emt 0:00:02]} 25. Nd6 {[%emt 0:00:03]} Bxd6 {[%emt 0:00:00]} 26. Rxd6 {[%emt 0:00:02]} Ra8 {[%emt 0:00:02]} 27. Rxa8 {[%emt 0:00:16]} Rxa8 {[%emt 0:00:02]} 28. Qd3 {[%emt 0:00:04]} Nf8 {[%emt 0:00:03]} 29. Bxe5 {[%emt 0:00:05]} Qc8 {[%emt 0:00:00]} 1-0

[Event "IND-ch Senior Open 2019"]
[Site "Mazitar"]
[Date "2019.12.10"]
[Round "1.11"]
[White "Anurag, Mhamal"]
[Black "Bidhar, Rutumbara"]
[Result "1-0"]
[ECO "A05"]
[WhiteElo "2490"]
[BlackElo "1939"]
[Annotator "ChessBase"]
[PlyCount "105"]
[EventDate "2018.12.08"]
[EventType "swiss"]
[EventRounds "11"]
[EventCountry "IND"]
[SourceTitle "playchess.com"]
[Source "ChessBase"]
[SourceQuality "1"]
[TimeControl "40/5400+30:1800+30"]

1. Nf3 {[%emt 0:00:00]} Nf6 {[%emt 0:00:01]} 2. g3 {[%emt 0:00:02]} b6 {[%emt 0:00:00]} 3. Bg2 {[%emt 0:00:02]} Bb7 {[%emt 0:00:01]} 4. d3 {[%emt 0:00:02]} d6 {[%emt 0:00:00]} 5. e4 {[%emt 0:00:03]} g6 {[%emt 0:00:01]} 6. O-O {[%emt 0:00:02]} Bg7 {[%emt 0:00:00]} 7. Nh4 {[%emt 0:00:01]} O-O {[%emt 0:00:01]} 8. e5 {[%emt 0:00:03]} Bxg2 {[%emt 0:00:05]} 9. exf6 {[%emt 0:00:04]} Bxf1 {[%emt 0:00:13]} 10. fxg7 {[%emt 0:00:01]} Kxg7 {[%emt 0:00:03]} 11. Qxf1 {[%emt 0:00:01]} e5 {[%emt 0:00:02]} 12. Nc3 {[%emt 0:00:01]} Nd7 {[%emt 0:00:03]} 13. Qh3 {[%emt 0:00:02]} Kg8 {[%emt 0:00:03]} 14. Bh6 {[%emt 0:55:28]} Re8 {[%emt 0:00:01]} 15. Re1 {[%emt 0:00:03]} Nc5 {[%emt 0:00:02]} 16. Nf3 {[%emt 0:00:02]} f6 {[%emt 0:00:01]} 17. Qh4 {[%emt 0:00:02]} d5 {[%emt 0:00:02]} 18. d4 {[%emt 0:00:02]} e4 {[%emt 0:00:00]} 19. dxc5 {[%emt 0:00:03]} exf3 {[%emt 0:00:02]} 20. Rxe8+ {[%emt 0:00:03]} Qxe8 {[%emt 0:00:00]} 21. Bd2 {[%emt 0:00:03]} Qe5 {[%emt 0:00:05]} 22. Qg4 {[%emt 0:00:03]} bxc5 {[%emt 0:00:03]} 23. Qxf3 {[%emt 0:00:02]} c6 {[%emt 0:00:02]} 24. Na4 {[%emt 0:00:13]} Qd4 {[%emt 0:00:01]} 25. Qe3 {[%emt 0:00:02]} Qxe3 {[%emt 0:00:01]} 26. fxe3 {[%emt 0:00:01]} c4 27. Bc3 {[%emt 0:00:02]} Kf7 {[%emt 0:00:31]} 28. Nc5 {[%emt 0:00:02]} Ke7 {[%emt 0:00:03]} 29. Bd4 {[%emt 0:00:03]} Kd6 {[%emt 0:00:02]} 30. Na6 {[%emt 0:00:02]} f5 {[%emt 0:00:02]} 31. Kf2 {[%emt 0:00:02]} g5 {[%emt 0:00:02]} 32. Kf3 {[%emt 0:00:02]} Rc8 {[%emt 0:00:02]} 33. Bc5+ {[%emt 0:00:05]} Ke5 {[%emt 0:00:04]} 34. a4 {[%emt 0:00:02]} g4+ {[%emt 0:00:02]} 35. Ke2 {[%emt 0:00:02]} h5 {[%emt 0:00:04]} 36. Bxa7 {[%emt 0:00:02]} Kd6 {[%emt 0:00:09]} 37. Bc5+ {[%emt 0:00:01]} Kd7 {[%emt 0:00:09]} 38. Bb6 {[%emt 0:00:01]} c5 {[%emt 0:00:02]} 39. Nxc5+ {[%emt 0:00:02]} Kc6 {[%emt 0:00:01]} 40. a5 {[%emt 0:00:03]} h4 {[%emt 0:00:01]} 41. Ne6 {[%emt 0:30:13]} hxg3 {[%emt 0:30:04]} 42. hxg3 {[%emt 0:00:02]} Rh8 {[%emt 0:00:01]} 43. Nd4+ {[%emt 0:00:03]} Kb7 {[%emt 0:00:17]} 44. Nxf5 {[%emt 0:00:01]} Rh2+ {[%emt 0:00:13]} 45. Kd1 {[%emt 0:00:02]} Rf2 {[%emt 0:00:04]} 46. Nh6 {[%emt 0:00:02]} Rf3 {[%emt 0:00:02]} 47. Nxg4 {[%emt 0:00:03]} Rxg3 {[%emt 0:00:02]} 48. Nf6 {[%emt 0:00:03]} Rg5 {[%emt 0:00:00]} 49. Kd2 {[%emt 0:00:03]} Rf5 {[%emt 0:00:03]} 50. Nd7 {[%emt 0:00:02]} Kc6 {[%emt 0:00:04]} 51. Nc5 {[%emt 0:00:01]} Rf2+ {[%emt 0:00:02]} 52. Kc3 {[%emt 0:00:01]} Re2 {[%emt 0:00:02]} 53. Na6 {[%emt 0:00:03]} 1-0

[Event "IND-ch Senior Open 2019"]
[Site "Mazitar"]
[Date "2019.12.10"]
[Round "1.12"]
[White "Rathore, S.K."]
[Black "Vignesh N R"]
[Result "0-1"]
[ECO "B23"]
[WhiteElo "1939"]
[BlackElo "2475"]
[Annotator "ChessBase"]
[PlyCount "60"]
[EventDate "2018.12.08"]
[EventType "swiss"]
[EventRounds "11"]
[EventCountry "IND"]
[SourceTitle "playchess.com"]
[Source "ChessBase"]
[SourceQuality "1"]
[TimeControl "40/5400+30:1800+30"]

1. e4 {[%emt 0:00:00]} c5 {[%emt 0:00:00]} 2. Nc3 {[%emt 0:00:02]} d6 {[%emt 0:00:00]} 3. g3 {[%emt 0:00:01]} Nc6 {[%emt 0:00:00]} 4. Bg2 {[%emt 0:00:01]} g6 {[%emt 0:00:02]} 5. Nge2 {[%emt 0:00:02]} Bg7 {[%emt 0:00:01]} 6. O-O {[%emt 0:00:02]} e6 {[%emt 0:00:01]} 7. d3 {[%emt 0:00:02]} Nge7 {[%emt 0:00:01]} 8. Be3 {[%emt 0:00:02]} Nd4 {[%emt 0:00:01]} 9. Qd2 {[%emt 0:00:02]} O-O {[%emt 0:00:00]} 10. Nd1 {[%emt 0:00:01]} d5 {[%emt 0:00:01]} 11. c3 {[%emt 0:00:01]} Nxe2+ {[%emt 0:00:00]} 12. Qxe2 {[%emt 0:00:01]} d4 {[%emt 0:00:01]} 13. cxd4 {[%emt 0:00:02]} cxd4 {[%emt 0:00:00]} 14. Bd2 {[%emt 0:00:02]} e5 {[%emt 0:00:03]} 15. f4 {[%emt 0:00:01]} Be6 {[%emt 0:00:05]} 16. fxe5 {[%emt 0:00:02]} Nc6 {[%emt 0:00:01]} 17. Nf2 {[%emt 0:00:04]} Nxe5 {[%emt 0:00:01]} 18. Bh3 {[%emt 0:00:01]} Bxh3 {[%emt 0:00:01]} 19. Nxh3 {[%emt 0:00:01]} Qd7 {[%emt 0:00:01]} 20. Nf4 {[%emt 0:00:02]} f5 {[%emt 0:00:00]} 21. Bb4 {[%emt 0:00:06]} Rf7 {[%emt 0:00:02]} 22. Rac1 {[%emt 0:00:02]} Re8 {[%emt 0:00:02]} 23. Ba3 {[%emt 0:00:09]} Ng4 {[%emt 0:00:02]} 24. Nd5 {[%emt 0:00:06]} Bh6 {[%emt 0:00:02]} 25. Rc4 {[%emt 0:00:01]} Ne3 {[%emt 0:00:05]} 26. Nxe3 {[%emt 0:00:47]} Bxe3+ {[%emt 0:00:01]} 27. Kg2 {[%emt 0:00:02]} fxe4 {[%emt 0:00:01]} 28. dxe4 {[%emt 0:00:02]} Rxf1 {[%emt 0:00:02]} 29. Qxf1 {[%emt 0:00:06]} Qe6 {[%emt 0:00:02]} 30. e5 {[%emt 0:00:03]} Qd5+ {[%emt 0:00:05]} 0-1

[Event "IND-ch Senior Open 2019"]
[Site "Mazitar"]
[Date "2019.12.10"]
[Round "1.13"]
[White "Kunte, Abhijit"]
[Black "Gurung Rohit"]
[Result "1-0"]
[ECO "D30"]
[WhiteElo "2467"]
[BlackElo "1917"]
[Annotator "ChessBase"]
[PlyCount "53"]
[EventDate "2018.12.08"]
[EventType "swiss"]
[EventRounds "11"]
[EventCountry "IND"]
[SourceTitle "playchess.com"]
[Source "ChessBase"]
[SourceQuality "1"]
[TimeControl "40/5400+30:1800+30"]

1. d4 {[%emt 0:00:00]} d5 {[%emt 0:00:03]} 2. c4 {[%emt 0:00:01]} e6 {[%emt 0:00:00]} 3. Nf3 {[%emt 0:00:07]} Nf6 {[%emt 0:00:02]} 4. g3 {[%emt 0:00:02]} Be7 {[%emt 0:00:01]} 5. Bg2 {[%emt 0:00:12]} O-O {[%emt 0:00:01]} 6. O-O {[%emt 0:00:04]} dxc4 {[%emt 0:00:01]} 7. Qc2 {[%emt 0:00:02]} b5 {[%emt 0:00:02]} 8. a4 {[%emt 0:00:02]} b4 {[%emt 0:00:00]} 9. Nbd2 {[%emt 0:00:02]} c6 {[%emt 0:00:00]} 10. Nxc4 {[%emt 0:00:02]} Ba6 {[%emt 0:00:02]} 11. Rd1 {[%emt 0:00:06]} Nd5 {[%emt 0:00:20]} 12. e4 {[%emt 0:00:02]} Nb6 {[%emt 0:00:01]} 13. Na5 {[%emt 0:00:02]} Qc8 {[%emt 0:00:41]} 14. Be3 {[%emt 0:00:05]} Rd8 {[%emt 0:00:19]} 15. Nd2 {[%emt 0:00:12]} Be2 {[%emt 0:00:04]} 16. Rdc1 {[%emt 0:00:02]} Qa6 {[%emt 0:00:02]} 17. Ndc4 {[%emt 0:00:15]} Nxc4 {[%emt 0:00:00]} 18. Nxc4 {[%emt 0:00:04]} Bh5 {[%emt 0:00:01]} 19. Bf1 {[%emt 0:00:03]} Rc8 {[%emt 0:00:16]} 20. Nd6 {[%emt 0:00:13]} Qxf1+ {[%emt 0:00:12]} 21. Rxf1 {[%emt 0:00:27]} Bxd6 {[%emt 0:00:01]} 22. Kg2 {[%emt 0:00:03]} Nd7 {[%emt 0:00:04]} 23. a5 {[%emt 0:00:02]} Bg6 {[%emt 0:00:03]} 24. f3 {[%emt 0:00:02]} f5 {[%emt 0:00:00]} 25. e5 {[%emt 0:00:06]} Be7 {[%emt 0:00:00]} 26. Qc4 {[%emt 0:00:03]} Nf8 {[%emt 0:00:04]} 27. Qa6 {[%emt 0:00:02]} 1-0

[Event "IND-ch Senior Open 2019"]
[Site "Mazitar"]
[Date "2019.12.10"]
[Round "1.14"]
[White "Aaditya Dhingra"]
[Black "Das, Arghyadip"]
[Result "0-1"]
[ECO "B40"]
[WhiteElo "1912"]
[BlackElo "2459"]
[Annotator "ChessBase"]
[PlyCount "70"]
[EventDate "2018.12.08"]
[EventType "swiss"]
[EventRounds "11"]
[EventCountry "IND"]
[SourceTitle "playchess.com"]
[Source "ChessBase"]
[SourceQuality "1"]
[TimeControl "40/5400+30:1800+30"]

1. e4 {[%emt 0:00:00]} c5 {[%emt 0:00:00]} 2. Nf3 {[%emt 0:00:01]} e6 {[%emt 0:00:00]} 3. d4 {[%emt 0:00:01]} cxd4 {[%emt 0:00:00]} 4. Nxd4 {[%emt 0:00:02]} Qb6 {[%emt 0:00:01]} 5. Nb3 {[%emt 0:00:09]} Qc7 {[%emt 0:00:02]} 6. Bd3 {[%emt 0:00:02]} Nf6 {[%emt 0:00:01]} 7. O-O {[%emt 0:00:01]} a6 {[%emt 0:00:00]} 8. c4 {[%emt 0:00:01]} d6 {[%emt 0:00:01]} 9. Nc3 {[%emt 0:00:01]} b6 {[%emt 0:00:01]} 10. Be3 {[%emt 0:00:01]} Nbd7 {[%emt 0:00:02]} 11. f4 {[%emt 0:00:01]} Be7 {[%emt 0:00:00]} 12. Qe2 {[%emt 0:00:03]} Bb7 {[%emt 0:00:01]} 13. Rae1 {[%emt 0:00:02]} O-O {[%emt 0:00:02]} 14. Bd4 {[%emt 0:00:02]} g6 {[%emt 0:00:01]} 15. Nd2 {[%emt 0:00:02]} Rfe8 {[%emt 0:00:01]} 16. Nf3 {[%emt 0:00:02]} Bf8 {[%emt 0:00:00]} 17. e5 {[%emt 0:00:01]} Nh5 {[%emt 0:00:00]} 18. Ng5 {[%emt 0:00:01]} Ng7 {[%emt 0:00:01]} 19. Nce4 {[%emt 0:00:02]} Nf5 {[%emt 0:00:02]} 20. Bc3 {[%emt 0:00:02]} d5 {[%emt 0:00:01]} 21. Nf6+ {[%emt 0:00:02]} Nxf6 {[%emt 0:00:00]} 22. exf6 {[%emt 0:00:00]} dxc4 {[%emt 0:00:03]} 23. Bxc4 {[%emt 0:00:01]} Bc5+ {[%emt 0:00:00]} 24. Kh1 {[%emt 0:00:01]} Ne3 {[%emt 0:00:01]} 25. Rf2 {[%emt 0:00:01]} Nxc4 {[%emt 0:00:00]} 26. Qxc4 {[%emt 0:00:01]} b5 {[%emt 0:00:00]} 27. Qe2 {[%emt 0:00:01]} h6 {[%emt 0:00:00]} 28. Nh3 {[%emt 0:00:01]} Bxf2 {[%emt 0:00:02]} 29. Qxf2 {[%emt 0:00:02]} Qc6 {[%emt 0:00:00]} 30. Rg1 {[%emt 0:00:02]} Qd5 {[%emt 0:00:00]} 31. Be5 {[%emt 0:00:03]} Rac8 {[%emt 0:00:04]} 32. Qh4 {[%emt 0:00:00]} Rc1 {[%emt 0:00:05]} 33. Qg3 {[%emt 0:00:03]} Rec8 {[%emt 0:00:02]} 34. Bc3 {[%emt 0:00:01]} Rxg1+ {[%emt 0:00:03]} 35. Nxg1 {[%emt 0:00:01]} b4 0-1

[Event "IND-ch Senior Open 2019"]
[Site "Mazitar"]
[Date "2019.12.10"]
[Round "1.15"]
[White "Krishna C R G"]
[Black "Sharan, Rao"]
[Result "1/2-1/2"]
[ECO "A15"]
[WhiteElo "2459"]
[BlackElo "1912"]
[Annotator "ChessBase"]
[PlyCount "79"]
[EventDate "2018.12.08"]
[EventType "swiss"]
[EventRounds "11"]
[EventCountry "IND"]
[SourceTitle "playchess.com"]
[Source "ChessBase"]
[SourceQuality "1"]
[TimeControl "40/5400+30:1800+30"]

1. Nf3 {[%emt 0:00:00]} Nf6 {[%emt 0:00:00]} 2. c4 {[%emt 0:00:01]} e6 {[%emt 0:00:00]} 3. g3 {[%emt 0:00:01]} b6 {[%emt 0:00:00]} 4. Bg2 {[%emt 0:00:02]} Bb7 {[%emt 0:00:00]} 5. O-O {[%emt 0:00:01]} Be7 {[%emt 0:00:00]} 6. b3 {[%emt 0:00:02]} O-O {[%emt 0:00:04]} 7. Bb2 {[%emt 0:00:00]} c5 {[%emt 0:00:02]} 8. e3 {[%emt 0:00:00]} d5 {[%emt 0:00:02]} 9. Qe2 {[%emt 0:00:04]} dxc4 {[%emt 0:00:00]} 10. bxc4 {[%emt 0:00:02]} Nc6 {[%emt 0:00:00]} 11. Nc3 {[%emt 0:00:01]} Qd7 {[%emt 0:00:02]} 12. Rad1 {[%emt 0:00:02]} Rad8 {[%emt 0:00:00]} 13. d3 {[%emt 0:00:28]} Qc8 {[%emt 0:00:13]} 14. Ne1 {[%emt 0:00:09]} a6 15. f4 Qa8 {[%emt 0:01:55]} 16. Rd2 {[%emt 0:00:34]} Na7 {[%emt 0:00:03]} 17. f5 {[%emt 0:00:04]} exf5 {[%emt 0:00:01]} 18. Rxf5 {[%emt 0:00:03]} b5 {[%emt 0:00:01]} 19. e4 {[%emt 0:00:03]} g6 {[%emt 0:00:01]} 20. Rf1 {[%emt 0:00:03]} bxc4 {[%emt 0:00:01]} 21. dxc4 {[%emt 0:00:03]} Rxd2 {[%emt 0:00:01]} 22. Qxd2 {[%emt 0:00:03]} Nxe4 {[%emt 0:00:00]} 23. Qd7 {[%emt 0:00:08]} Nc8 {[%emt 0:00:01]} 24. Nd5 {[%emt 0:00:04]} Bxd5 {[%emt 0:00:01]} 25. cxd5 {[%emt 0:00:05]} Ned6 {[%emt 0:00:01]} 26. Qh3 {[%emt 0:00:11]} Re8 {[%emt 0:00:01]} 27. Nf3 {[%emt 0:00:09]} Bf8 {[%emt 0:00:01]} 28. Qh4 {[%emt 0:00:02]} Bg7 {[%emt 0:00:01]} 29. Bxg7 {[%emt 0:00:05]} Kxg7 {[%emt 0:00:00]} 30. Ne5 {[%emt 0:00:19]} Nf5 {[%emt 0:00:05]} 31. Rxf5 {[%emt 0:00:04]} gxf5 {[%emt 0:00:00]} 32. Qg5+ {[%emt 0:00:00]} Kh8 {[%emt 0:00:05]} 33. Qf6+ {[%emt 0:00:00]} Kg8 {[%emt 0:00:02]} 34. Qg5+ {[%emt 0:00:00]} Kh8 {[%emt 0:00:04]} 35. Qf6+ {[%emt 0:00:00]} Kg8 {[%emt 0:00:03]} 36. Qxf5 {[%emt 0:00:01]} Qa7 {[%emt 0:00:01]} 37. Qg5+ {[%emt 0:00:08]} Kh8 {[%emt 0:00:00]} 38. Qf6+ {[%emt 0:00:06]} Kg8 {[%emt 0:00:00]} 39. Qg5+ {[%emt 0:00:05]} Kh8 {[%emt 0:00:02]} 40. Qf6+ {[%emt 0:00:05]} 1/2-1/2